[Event "Late-Titled-Tuesday-Blitz-March-26-2024"]
[Site "Chess.com"]
[Date "2024.03.26"]
[Round "8"]
[White "DishonorOnYourCow"]
[Black "CaspiIsrael"]
[Result "1-0"]
[WhiteElo "2553"]
[BlackElo "2654"]
[TimeControl "180+1"]
[EndTime "15:26:05 PDT"]
[Termination "DishonorOnYourCow won by checkmate"]

1. d4 {[%clk 0:03:00.9]} 1... Nf6 {[%clk 0:02:57.9]} 2. c4 {[%clk 0:03:01.1]}
2... g6 {[%clk 0:02:58.4]} 3. Nc3 {[%clk 0:03:01.1]} 3... d5 {[%clk 0:02:59]} 4.
cxd5 {[%clk 0:03:00.8]} 4... Nxd5 {[%clk 0:02:59.9]} 5. e4 {[%clk 0:03:01.2]}
5... Nxc3 {[%clk 0:03:00.3]} 6. bxc3 {[%clk 0:03:02.1]} 6... Bg7 {[%clk
0:03:00.5]} 7. Nf3 {[%clk 0:03:02.4]} 7... c5 {[%clk 0:03:01]} 8. Bb5+ {[%clk
0:03:02.6]} 8... Bd7 {[%clk 0:03:00.8]} 9. Be2 {[%clk 0:02:59.6]} 9... O-O
{[%clk 0:02:59.5]} 10. O-O {[%clk 0:02:59.2]} 10... Nc6 {[%clk 0:02:59.6]} 11.
Be3 {[%clk 0:02:59]} 11... e6 {[%clk 0:02:58.2]} 12. d5 {[%clk 0:02:56]} 12...
exd5 {[%clk 0:02:57.4]} 13. exd5 {[%clk 0:02:56.3]} 13... Ne7 {[%clk 0:02:51.3]}
14. Bxc5 {[%clk 0:02:53.1]} 14... Bxc3 {[%clk 0:02:50.2]} 15. Rc1 {[%clk
0:02:48.5]} 15... Bg7 {[%clk 0:02:50]} 16. Re1 {[%clk 0:02:42.9]} 16... Re8
{[%clk 0:02:50.2]} 17. Bc4 {[%clk 0:02:36.4]} 17... b6 {[%clk 0:02:45.7]} 18.
Bd4 {[%clk 0:02:07]} 18... Nf5 {[%clk 0:02:44.7]} 19. Bxg7 {[%clk 0:02:02.8]}
19... Kxg7 {[%clk 0:02:45.6]} 20. Qd2 {[%clk 0:01:48.5]} 20... Rc8 {[%clk
0:02:40.8]} 21. Bb3 {[%clk 0:01:46.8]} 21... Qf6 {[%clk 0:02:36.5]} 22. h3
{[%clk 0:01:42.6]} 22... h6 {[%clk 0:02:32.7]} 23. Rxe8 {[%clk 0:01:39.2]} 23...
Rxe8 {[%clk 0:02:28.4]} 24. Rc7 {[%clk 0:01:38.6]} 24... Bb5 {[%clk 0:02:23.9]}
25. a4 {[%clk 0:01:22.1]} 25... Be2 {[%clk 0:02:09.1]} 26. Rc6 {[%clk
0:00:56.4]} 26... Qa1+ {[%clk 0:02:04.5]} 27. Rc1 {[%clk 0:00:56.3]} 27... Qf6
{[%clk 0:02:00.9]} 28. Re1 {[%clk 0:00:49]} 28... Bxf3 {[%clk 0:01:18.9]} 29.
Rxe8 {[%clk 0:00:48.2]} 29... Nd4 {[%clk 0:01:19.6]} 30. Qb4 {[%clk 0:00:42.3]}
30... Bxg2 {[%clk 0:01:09.3]} 31. Qf8+ {[%clk 0:00:41.5]} 31... Kh7 {[%clk
0:01:08.7]} 32. Qg8# {[%clk 0:00:41.6]} 1-0

[Event "Late-Titled-Tuesday-Blitz-March-26-2024"]
[Site "Chess.com"]
[Date "2024.03.26"]
[Round "8"]
[White "EternalNight8"]
[Black "GodzillaChessYoutube"]
[Result "0-1"]
[WhiteElo "2448"]
[BlackElo "2689"]
[TimeControl "180+1"]
[EndTime "15:26:06 PDT"]
[Termination "GodzillaChessYoutube won by resignation"]

1. e4 {[%clk 0:03:00.9]} 1... Nh6 {[%clk 0:03:00.9]} 2. d4 {[%clk 0:02:58.2]}
2... d5 {[%clk 0:03:01.6]} 3. e5 {[%clk 0:02:55.6]} 3... Nf5 {[%clk 0:03:00.7]}
4. Nh3 {[%clk 0:02:50.8]} 4... h5 {[%clk 0:03:00.4]} 5. Bd3 {[%clk 0:02:49.9]}
5... g6 {[%clk 0:02:55]} 6. Nd2 {[%clk 0:02:49.4]} 6... a6 {[%clk 0:02:54.2]} 7.
Nf3 {[%clk 0:02:48.3]} 7... c5 {[%clk 0:02:51.2]} 8. c3 {[%clk 0:02:47.4]} 8...
cxd4 {[%clk 0:02:50.3]} 9. cxd4 {[%clk 0:02:48]} 9... Nc6 {[%clk 0:02:49.7]} 10.
Nf4 {[%clk 0:02:39.8]} 10... e6 {[%clk 0:02:41.1]} 11. h4 {[%clk 0:02:26.9]}
11... Qb6 {[%clk 0:02:30.2]} 12. Bxf5 {[%clk 0:02:21.4]} 12... gxf5 {[%clk
0:02:31.1]} 13. O-O {[%clk 0:02:12.1]} 13... Be7 {[%clk 0:02:30.6]} 14. Be3
{[%clk 0:02:10]} 14... Bd7 {[%clk 0:02:21.1]} 15. Ng5 {[%clk 0:02:05.4]} 15...
Bxg5 {[%clk 0:02:20.9]} 16. hxg5 {[%clk 0:02:06.3]} 16... h4 {[%clk 0:02:21.6]}
17. g6 {[%clk 0:02:05.4]} 17... fxg6 {[%clk 0:02:20.7]} 18. Nxg6 {[%clk
0:02:04.5]} 18... Rg8 {[%clk 0:02:21]} 19. Nxh4 {[%clk 0:01:31.2]} 19... O-O-O
{[%clk 0:02:20.6]} 20. a4 {[%clk 0:01:20]} 20... Rg4 {[%clk 0:02:20.8]} 21. Nf3
{[%clk 0:01:13.8]} 21... Rdg8 {[%clk 0:02:21]} 22. Ne1 {[%clk 0:00:59.8]} 22...
f4 {[%clk 0:02:18.3]} 23. Bd2 {[%clk 0:00:54.6]} 23... Qxb2 {[%clk 0:02:01.4]}
24. Rb1 {[%clk 0:00:50.8]} 24... Qxd4 {[%clk 0:01:55.1]} 25. Qe2 {[%clk
0:00:20.6]} 25... f3 {[%clk 0:01:48.4]} 26. Nxf3 {[%clk 0:00:12.9]} 26... Rxg2+
{[%clk 0:01:47.4]} 27. Kh1 {[%clk 0:00:12.5]} 27... Qg4 {[%clk 0:01:47.8]} 28.
Ng5 {[%clk 0:00:07.1]} 28... Qxe2 {[%clk 0:01:43.3]} 29. Kxg2 {[%clk 0:00:06.9]}
29... Qxd2 {[%clk 0:01:42.3]} 0-1

[Event "Late-Titled-Tuesday-Blitz-March-26-2024"]
[Site "Chess.com"]
[Date "2024.03.26"]
[Round "8"]
[White "IsaqueGoncalvesSanto"]
[Black "Bkmzzzzz"]
[Result "0-1"]
[WhiteElo "1905"]
[BlackElo "2391"]
[TimeControl "180+1"]
[EndTime "15:26:08 PDT"]
[Termination "Bkmzzzzz won by resignation"]

1. d4 {[%clk 0:02:56.8]} 1... d5 {[%clk 0:02:59.7]} 2. c4 {[%clk 0:02:56.7]}
2... dxc4 {[%clk 0:03:00.6]} 3. Nc3 {[%clk 0:02:56.3]} 3... a6 {[%clk
0:03:00.1]} 4. a4 {[%clk 0:02:54.5]} 4... Nc6 {[%clk 0:02:56.5]} 5. d5 {[%clk
0:02:49.3]} 5... Na5 {[%clk 0:02:47.2]} 6. b4 {[%clk 0:02:39.9]} 6... cxb3
{[%clk 0:02:46.1]} 7. e4 {[%clk 0:02:34.6]} 7... e6 {[%clk 0:02:40.6]} 8. Bf4
{[%clk 0:02:15.9]} 8... Bb4 {[%clk 0:02:33.3]} 9. Qd4 {[%clk 0:02:06.7]} 9... c5
{[%clk 0:01:18.9]} 10. Qxg7 {[%clk 0:02:03.1]} 10... Qf6 {[%clk 0:01:07.3]} 11.
Qxf6 {[%clk 0:01:45.8]} 11... Nxf6 {[%clk 0:01:08.2]} 12. Be5 {[%clk 0:01:46.2]}
12... Nxe4 {[%clk 0:01:07.1]} 13. Bxh8 {[%clk 0:01:43.7]} 13... Nxc3 {[%clk
0:01:06.5]} 14. Rc1 {[%clk 0:00:42.2]} 14... b2 {[%clk 0:00:44.5]} 15. Kd2
{[%clk 0:00:41.6]} 15... Na2+ {[%clk 0:00:40.5]} 0-1

[Event "Late-Titled-Tuesday-Blitz-March-26-2024"]
[Site "Chess.com"]
[Date "2024.03.26"]
[Round "8"]
[White "cthulhuuu"]
[Black "kai_nov"]
[Result "1-0"]
[WhiteElo "2424"]
[BlackElo "2333"]
[TimeControl "180+1"]
[EndTime "15:26:12 PDT"]
[Termination "cthulhuuu won on time"]

1. e4 {[%clk 0:02:59.9]} 1... c5 {[%clk 0:02:56.9]} 2. Nf3 {[%clk 0:03:00]} 2...
Nc6 {[%clk 0:02:52]} 3. g3 {[%clk 0:03:00.2]} 3... d5 {[%clk 0:02:50.3]} 4. exd5
{[%clk 0:03:01.1]} 4... Qxd5 {[%clk 0:02:50.5]} 5. Nc3 {[%clk 0:03:01.1]} 5...
Qe6+ {[%clk 0:02:41.3]} 6. Qe2 {[%clk 0:03:00.1]} 6... Qxe2+ {[%clk 0:02:31.9]}
7. Bxe2 {[%clk 0:03:01]} 7... Bh3 {[%clk 0:02:31.8]} 8. Bb5 {[%clk 0:03:00.6]}
8... Bg2 {[%clk 0:02:17.5]} 9. Ne5 {[%clk 0:03:00.4]} 9... Bxh1 {[%clk
0:02:13.2]} 10. f3 {[%clk 0:03:00.6]} 10... Rc8 {[%clk 0:02:02.3]} 11. Kf2
{[%clk 0:03:00.7]} 11... a6 {[%clk 0:01:43.4]} 12. Bxc6+ {[%clk 0:02:59.1]}
12... bxc6 {[%clk 0:01:43.5]} 13. d3 {[%clk 0:02:59.3]} 13... f6 {[%clk
0:01:11.6]} 14. Nc4 {[%clk 0:02:59.1]} 14... e5 {[%clk 0:00:45.6]} 15. Be3
{[%clk 0:02:58.8]} 15... Bxf3 {[%clk 0:00:43.9]} 16. Kxf3 {[%clk 0:02:59.7]}
16... Nh6 {[%clk 0:00:36]} 17. Bxh6 {[%clk 0:02:56.3]} 17... gxh6 {[%clk
0:00:35.7]} 18. Ne4 {[%clk 0:02:56.7]} 18... Rb8 {[%clk 0:00:19.7]} 19. Nxf6+
{[%clk 0:02:50.3]} 19... Ke7 {[%clk 0:00:19.8]} 20. Ne4 {[%clk 0:02:42.8]} 20...
Ke6 {[%clk 0:00:19.5]} 21. b3 {[%clk 0:02:33]} 21... Be7 {[%clk 0:00:19.6]} 22.
Ke2 {[%clk 0:02:29.1]} 22... Rhf8 {[%clk 0:00:19.3]} 23. Na5 {[%clk 0:02:19.6]}
23... Rbc8 {[%clk 0:00:16]} 24. Nb7 {[%clk 0:02:16]} 24... Kd5 {[%clk
0:00:13.8]} 25. c4+ {[%clk 0:02:07.4]} 25... Kd4 {[%clk 0:00:13.2]} 26. Na5
{[%clk 0:01:58]} 26... Bd8 {[%clk 0:00:05.5]} 27. Nb7 {[%clk 0:01:52.4]} 27...
Bb6 {[%clk 0:00:04.5]} 28. Nbd6 {[%clk 0:01:48.7]} 28... Rcd8 {[%clk 0:00:03.5]}
29. g4 {[%clk 0:01:46]} 1-0

[Event "Late-Titled-Tuesday-Blitz-March-26-2024"]
[Site "Chess.com"]
[Date "2024.03.26"]
[Round "8"]
[White "Slovineanu"]
[Black "Boninknights"]
[Result "0-1"]
[WhiteElo "2496"]
[BlackElo "2400"]
[TimeControl "180+1"]
[EndTime "15:26:13 PDT"]
[Termination "Boninknights won by resignation"]

1. d4 {[%clk 0:02:55.4]} 1... Nf6 {[%clk 0:02:58.9]} 2. Nf3 {[%clk 0:02:54.6]}
2... d6 {[%clk 0:02:55.6]} 3. Nc3 {[%clk 0:02:54]} 3... Bf5 {[%clk 0:02:53.3]}
4. Nh4 {[%clk 0:02:52.9]} 4... Bd7 {[%clk 0:02:52.8]} 5. e4 {[%clk 0:02:52.9]}
5... e5 {[%clk 0:02:52.6]} 6. Nf3 {[%clk 0:02:52.1]} 6... Nc6 {[%clk 0:02:51.1]}
7. Bc4 {[%clk 0:02:49.7]} 7... Be7 {[%clk 0:02:45.7]} 8. O-O {[%clk 0:02:48.9]}
8... O-O {[%clk 0:02:44.5]} 9. h3 {[%clk 0:02:49.1]} 9... exd4 {[%clk
0:02:38.7]} 10. Nxd4 {[%clk 0:02:48.7]} 10... Ne5 {[%clk 0:02:38.5]} 11. Be2
{[%clk 0:02:38.2]} 11... c5 {[%clk 0:02:35.1]} 12. Nf3 {[%clk 0:02:35.9]} 12...
Bc6 {[%clk 0:02:34.1]} 13. Nxe5 {[%clk 0:02:24.3]} 13... dxe5 {[%clk 0:02:31.7]}
14. Bf3 {[%clk 0:02:24]} 14... b5 {[%clk 0:02:23.4]} 15. Bg5 {[%clk 0:02:19.9]}
15... b4 {[%clk 0:02:19.9]} 16. Bxf6 {[%clk 0:02:15]} 16... Bxf6 {[%clk
0:02:18.6]} 17. Nd5 {[%clk 0:02:07.9]} 17... Bxd5 {[%clk 0:02:17.2]} 18. exd5
{[%clk 0:02:08.2]} 18... e4 {[%clk 0:02:16.3]} 19. Bxe4 {[%clk 0:02:07.9]} 19...
Bxb2 {[%clk 0:02:15.2]} 20. Rb1 {[%clk 0:02:07.9]} 20... Bd4 {[%clk 0:02:14.5]}
21. Qf3 {[%clk 0:01:46.1]} 21... Qd6 {[%clk 0:02:07]} 22. Rfe1 {[%clk
0:01:34.2]} 22... g6 {[%clk 0:02:03]} 23. Bd3 {[%clk 0:01:33.7]} 23... Rfe8
{[%clk 0:01:58.7]} 24. g3 {[%clk 0:01:27.5]} 24... Kf8 {[%clk 0:01:39.6]} 25.
Kg2 {[%clk 0:01:25.9]} 25... Rxe1 {[%clk 0:01:37.7]} 26. Rxe1 {[%clk 0:01:25.6]}
26... Re8 {[%clk 0:01:37]} 27. Rxe8+ {[%clk 0:01:10.6]} 27... Kxe8 {[%clk
0:01:35.9]} 28. Bb5+ {[%clk 0:01:10.1]} 28... Ke7 {[%clk 0:01:32.3]} 29. Bc6
{[%clk 0:01:02.7]} 29... Qf6 {[%clk 0:01:28.7]} 30. Qe2+ {[%clk 0:00:59.3]}
30... Kd6 {[%clk 0:01:28.4]} 31. f4 {[%clk 0:00:58]} 31... Qe7 {[%clk
0:01:27.2]} 32. Qa6 {[%clk 0:00:56.2]} 32... Qe4+ {[%clk 0:01:23.1]} 33. Kf1
{[%clk 0:00:51.9]} 33... Qf3+ {[%clk 0:01:13.9]} 34. Ke1 {[%clk 0:00:52.2]}
34... Bf2+ {[%clk 0:01:11.6]} 35. Kd2 {[%clk 0:00:46]} 35... Qe3+ {[%clk
0:01:11.2]} 0-1

[Event "Late-Titled-Tuesday-Blitz-March-26-2024"]
[Site "Chess.com"]
[Date "2024.03.26"]
[Round "8"]
[White "Beca95"]
[Black "Mikhail_Bryakin"]
[Result "1-0"]
[WhiteElo "2960"]
[BlackElo "2870"]
[TimeControl "180+1"]
[EndTime "15:26:24 PDT"]
[Termination "Beca95 won by resignation"]

1. d4 {[%clk 0:02:59.4]} 1... Nf6 {[%clk 0:02:57.6]} 2. c4 {[%clk 0:02:59]} 2...
e5 {[%clk 0:02:54.1]} 3. dxe5 {[%clk 0:02:58.6]} 3... Ng4 {[%clk 0:02:54.8]} 4.
e3 {[%clk 0:02:58.8]} 4... Nxe5 {[%clk 0:02:53.6]} 5. f4 {[%clk 0:02:58.7]} 5...
Nec6 {[%clk 0:02:51.4]} 6. Nc3 {[%clk 0:02:58.2]} 6... a5 {[%clk 0:02:47.5]} 7.
Bd3 {[%clk 0:02:57.7]} 7... Na6 {[%clk 0:02:47.7]} 8. Nf3 {[%clk 0:02:57.6]}
8... Bc5 {[%clk 0:02:44.6]} 9. O-O {[%clk 0:02:57]} 9... d6 {[%clk 0:02:44.8]}
10. a3 {[%clk 0:02:56.8]} 10... h6 {[%clk 0:02:44.6]} 11. Bc2 {[%clk 0:02:53.9]}
11... O-O {[%clk 0:02:33.6]} 12. Kh1 {[%clk 0:02:51.5]} 12... Ba7 {[%clk
0:02:26.7]} 13. Rb1 {[%clk 0:02:49.6]} 13... Ne7 {[%clk 0:02:15.4]} 14. b4
{[%clk 0:02:39.2]} 14... Bf5 {[%clk 0:01:57.5]} 15. e4 {[%clk 0:02:38.8]} 15...
Bh7 {[%clk 0:01:56.8]} 16. f5 {[%clk 0:02:38]} 16... f6 {[%clk 0:01:46.7]} 17.
Nh4 {[%clk 0:02:25.8]} 17... Kh8 {[%clk 0:01:46.3]} 18. Rf3 {[%clk 0:02:19.8]}
18... Nb8 {[%clk 0:01:33.3]} 19. Nd5 {[%clk 0:02:05.3]} 19... Nxd5 {[%clk
0:01:23.9]} 20. cxd5 {[%clk 0:02:06.2]} 20... Nd7 {[%clk 0:01:22.9]} 21. Rh3
{[%clk 0:02:04.8]} 21... Ne5 {[%clk 0:01:20]} 22. Rbb3 {[%clk 0:02:00.4]} 22...
axb4 {[%clk 0:01:18.2]} 23. axb4 {[%clk 0:01:59.8]} 23... Bf2 {[%clk 0:01:14.5]}
24. Ng6+ {[%clk 0:01:39.4]} 24... Nxg6 {[%clk 0:00:45.3]} 25. fxg6 {[%clk
0:01:39.2]} 25... Bxg6 {[%clk 0:00:46.2]} 26. Rbf3 {[%clk 0:01:29]} 26... Bb6
{[%clk 0:00:39.8]} 27. Bxh6 {[%clk 0:01:23.2]} 27... gxh6 {[%clk 0:00:38.6]} 28.
Rxh6+ {[%clk 0:01:22.9]} 28... Kg7 {[%clk 0:00:38.5]} 29. Rxg6+ {[%clk
0:01:22.8]} 29... Kxg6 {[%clk 0:00:37]} 30. Rg3+ {[%clk 0:01:23]} 30... Kh6
{[%clk 0:00:26.4]} 31. Rh3+ {[%clk 0:01:22.6]} 31... Kg5 {[%clk 0:00:21.1]} 32.
Qh5+ {[%clk 0:01:20.9]} 1-0

[Event "Late-Titled-Tuesday-Blitz-March-26-2024"]
[Site "Chess.com"]
[Date "2024.03.26"]
[Round "8"]
[White "Jimonios"]
[Black "a-z30"]
[Result "1-0"]
[WhiteElo "2612"]
[BlackElo "2473"]
[TimeControl "180+1"]
[EndTime "15:26:26 PDT"]
[Termination "Jimonios won by resignation"]

1. h3 {[%clk 0:03:00.4]} 1... d5 {[%clk 0:02:57.2]} 2. a3 {[%clk 0:03:01.3]}
2... e5 {[%clk 0:02:55.8]} 3. g3 {[%clk 0:03:02.2]} 3... c6 {[%clk 0:02:54.8]}
4. b3 {[%clk 0:03:03.1]} 4... f5 {[%clk 0:02:50.5]} 5. c3 {[%clk 0:03:03]} 5...
Bd6 {[%clk 0:02:50.6]} 6. d3 {[%clk 0:03:03.2]} 6... Nf6 {[%clk 0:02:51.2]} 7.
e3 {[%clk 0:03:03.4]} 7... O-O {[%clk 0:02:51.8]} 8. f3 {[%clk 0:03:03.7]} 8...
e4 {[%clk 0:02:46.8]} 9. f4 {[%clk 0:03:03.3]} 9... exd3 {[%clk 0:02:45.3]} 10.
Bxd3 {[%clk 0:03:03.2]} 10... Ne4 {[%clk 0:02:37.5]} 11. Ne2 {[%clk 0:03:01.5]}
11... Nd7 {[%clk 0:02:35.7]} 12. Nd2 {[%clk 0:02:59.6]} 12... Ndc5 {[%clk
0:02:23.5]} 13. Bc2 {[%clk 0:02:59.3]} 13... Qb6 {[%clk 0:01:47.7]} 14. b4
{[%clk 0:02:58]} 14... Nd7 {[%clk 0:01:44.1]} 15. Nxe4 {[%clk 0:02:43.2]} 15...
fxe4 {[%clk 0:01:42.8]} 16. Bxe4 {[%clk 0:02:44.1]} 16... Nf6 {[%clk 0:01:39.1]}
17. Bg2 {[%clk 0:02:43.1]} 17... Re8 {[%clk 0:01:28.5]} 18. O-O {[%clk
0:02:17.6]} 18... a5 {[%clk 0:01:24.9]} 19. Rb1 {[%clk 0:02:16.1]} 19... Ne4
{[%clk 0:01:19.1]} 20. c4 {[%clk 0:02:11.8]} 20... axb4 {[%clk 0:01:13.9]} 21.
cxd5 {[%clk 0:01:53.5]} 21... c5 {[%clk 0:01:12.4]} 22. axb4 {[%clk 0:01:52.3]}
22... cxb4 {[%clk 0:01:11.2]} 23. Qd3 {[%clk 0:01:34.6]} 23... Nc5 {[%clk
0:00:47.9]} 24. Qd4 {[%clk 0:01:34.4]} 24... Qa6 {[%clk 0:00:37.3]} 25. Bb2
{[%clk 0:01:30.7]} 25... Re7 {[%clk 0:00:34.1]} 26. Ra1 {[%clk 0:01:29.4]} 26...
Na4 {[%clk 0:00:31.2]} 27. Rxa4 {[%clk 0:01:27.8]} 27... Qxa4 {[%clk 0:00:27.7]}
28. Ra1 {[%clk 0:01:27.7]} 28... Qc2 {[%clk 0:00:16.5]} 29. Rxa8 {[%clk
0:01:26.9]} 29... Rc7 {[%clk 0:00:08.5]} 30. Rxc8+ {[%clk 0:01:25.9]} 1-0

[Event "Late-Titled-Tuesday-Blitz-March-26-2024"]
[Site "Chess.com"]
[Date "2024.03.26"]
[Round "8"]
[White "thesupera12"]
[Black "Shahdad2007"]
[Result "0-1"]
[WhiteElo "2423"]
[BlackElo "2617"]
[TimeControl "180+1"]
[EndTime "15:26:36 PDT"]
[Termination "Shahdad2007 won by resignation"]

1. Nf3 {[%clk 0:03:00.9]} 1... Nf6 {[%clk 0:02:59.6]} 2. b3 {[%clk 0:02:57.9]}
2... b6 {[%clk 0:02:59.8]} 3. Bb2 {[%clk 0:02:58.8]} 3... Bb7 {[%clk 0:03:00.7]}
4. g3 {[%clk 0:02:59]} 4... g6 {[%clk 0:03:01.4]} 5. Bg2 {[%clk 0:02:59.6]} 5...
Bg7 {[%clk 0:03:02.1]} 6. O-O {[%clk 0:03:00.3]} 6... O-O {[%clk 0:03:02.7]} 7.
c4 {[%clk 0:03:00.5]} 7... c5 {[%clk 0:03:03.2]} 8. d4 {[%clk 0:03:00.5]} 8...
cxd4 {[%clk 0:03:03.7]} 9. Nxd4 {[%clk 0:03:00.6]} 9... Bxg2 {[%clk 0:03:04.2]}
10. Kxg2 {[%clk 0:03:01.5]} 10... Qc7 {[%clk 0:03:04.7]} 11. Nc3 {[%clk
0:03:00.6]} 11... Nc6 {[%clk 0:03:04.4]} 12. Nxc6 {[%clk 0:03:00.6]} 12... Qxc6+
{[%clk 0:03:04.1]} 13. Kg1 {[%clk 0:03:01.5]} 13... Rfd8 {[%clk 0:03:01.1]} 14.
Rc1 {[%clk 0:03:01.6]} 14... Ne4 {[%clk 0:02:50.8]} 15. Qd3 {[%clk 0:02:58.4]}
15... Nxc3 {[%clk 0:02:42.4]} 16. Bxc3 {[%clk 0:02:59.3]} 16... Bxc3 {[%clk
0:02:41.7]} 17. Qxc3 {[%clk 0:03:00.2]} 17... Rac8 {[%clk 0:02:37.7]} 18. Rfd1
{[%clk 0:02:56.2]} 18... d5 {[%clk 0:02:31.4]} 19. Qe3 {[%clk 0:02:54.3]} 19...
dxc4 {[%clk 0:02:28.1]} 20. Rxd8+ {[%clk 0:02:52.8]} 20... Rxd8 {[%clk
0:02:27.3]} 21. Qxe7 {[%clk 0:02:53.5]} 21... Rd7 {[%clk 0:02:22.1]} 22. Qe8+
{[%clk 0:02:50.2]} 22... Kg7 {[%clk 0:02:22.3]} 23. Qe5+ {[%clk 0:02:48.4]}
23... f6 {[%clk 0:02:16.5]} 24. Qc3 {[%clk 0:02:43.1]} 24... b5 {[%clk
0:02:16.6]} 25. bxc4 {[%clk 0:02:42.1]} 25... bxc4 {[%clk 0:02:15.3]} 26. h4
{[%clk 0:02:35.9]} 26... Rc7 {[%clk 0:02:14.7]} 27. Rc2 {[%clk 0:02:30.2]} 27...
h5 {[%clk 0:02:12.9]} 28. Rc1 {[%clk 0:02:29.5]} 28... Qe4 {[%clk 0:02:07.7]}
29. Qa5 {[%clk 0:02:22.5]} 29... Qe5 {[%clk 0:02:01.1]} 30. Qxe5 {[%clk
0:02:01.2]} 30... fxe5 {[%clk 0:02:02]} 31. Kg2 {[%clk 0:02:02.1]} 31... e4
{[%clk 0:01:42.4]} 32. f3 {[%clk 0:02:01.7]} 32... Kf6 {[%clk 0:01:42.1]} 33.
fxe4 {[%clk 0:02:00.5]} 33... Ke5 {[%clk 0:01:42.2]} 34. Kf3 {[%clk 0:01:58.3]}
34... Kd4 {[%clk 0:01:42.5]} 35. e5 {[%clk 0:01:57.3]} 35... Rf7+ {[%clk
0:01:19]} 36. Kg2 {[%clk 0:01:55.8]} 36... c3 {[%clk 0:01:17.9]} 37. e6 {[%clk
0:01:55.1]} 37... Re7 {[%clk 0:01:17.4]} 38. Rd1+ {[%clk 0:01:47.8]} 38... Kc4
{[%clk 0:01:06.6]} 39. Rd7 {[%clk 0:01:45.9]} 39... Rxe6 {[%clk 0:01:05.8]} 40.
Rxa7 {[%clk 0:01:36.9]} 40... Rxe2+ {[%clk 0:01:01.2]} 41. Kf3 {[%clk
0:01:37.4]} 41... Re5 {[%clk 0:01:01.8]} 42. Rc7+ {[%clk 0:01:30.3]} 42... Kd3
{[%clk 0:00:59.3]} 43. g4 {[%clk 0:01:27.1]} 43... Re3+ {[%clk 0:00:56.8]} 44.
Kf4 {[%clk 0:01:23.7]} 44... Re4+ {[%clk 0:00:57]} 45. Kf3 {[%clk 0:01:22.7]}
45... Rxg4 {[%clk 0:00:57.9]} 46. a4 {[%clk 0:01:21.2]} 46... Rxa4 {[%clk
0:00:57.4]} 47. Kf2 {[%clk 0:01:12.6]} 47... c2 {[%clk 0:00:52.8]} 48. Rxc2
{[%clk 0:01:11.5]} 48... Kxc2 {[%clk 0:00:52.8]} 0-1

[Event "Late-Titled-Tuesday-Blitz-March-26-2024"]
[Site "Chess.com"]
[Date "2024.03.26"]
[Round "8"]
[White "Eloist"]
[Black "dealshark"]
[Result "0-1"]
[WhiteElo "2471"]
[BlackElo "2301"]
[TimeControl "180+1"]
[EndTime "15:26:40 PDT"]
[Termination "dealshark won by resignation"]

1. e4 {[%clk 0:03:00.9]} 1... c6 {[%clk 0:03:00.2]} 2. Nf3 {[%clk 0:02:59.6]}
2... d5 {[%clk 0:03:01.1]} 3. d3 {[%clk 0:02:59.8]} 3... Bg4 {[%clk 0:03:00.6]}
4. h3 {[%clk 0:02:46.9]} 4... Bh5 {[%clk 0:03:00.7]} 5. Be2 {[%clk 0:02:39.4]}
5... e6 {[%clk 0:02:59.9]} 6. O-O {[%clk 0:02:38.5]} 6... Nd7 {[%clk 0:02:59.4]}
7. Nbd2 {[%clk 0:02:37]} 7... Bd6 {[%clk 0:02:58.2]} 8. Re1 {[%clk 0:02:36.4]}
8... Ngf6 {[%clk 0:02:57.1]} 9. Bf1 {[%clk 0:02:20.2]} 9... Bc7 {[%clk
0:02:45.3]} 10. g4 {[%clk 0:02:14.3]} 10... Bg6 {[%clk 0:02:45.4]} 11. e5 {[%clk
0:02:12.3]} 11... Ng8 {[%clk 0:02:45.6]} 12. Bg2 {[%clk 0:01:59.9]} 12... h5
{[%clk 0:02:43]} 13. Nf1 {[%clk 0:01:57.3]} 13... hxg4 {[%clk 0:02:42.2]} 14.
hxg4 {[%clk 0:01:56.8]} 14... Nh6 {[%clk 0:02:37.7]} 15. Bxh6 {[%clk 0:01:43.7]}
15... Rxh6 {[%clk 0:02:36.8]} 16. Ng3 {[%clk 0:01:41.5]} 16... Qe7 {[%clk
0:02:36]} 17. d4 {[%clk 0:01:36]} 17... O-O-O {[%clk 0:02:34.4]} 18. Rc1 {[%clk
0:01:26.7]} 18... Rdh8 {[%clk 0:02:33.2]} 19. c4 {[%clk 0:01:26.2]} 19... Kb8
{[%clk 0:02:32.9]} 20. cxd5 {[%clk 0:01:20.8]} 20... exd5 {[%clk 0:02:29.6]} 21.
Nf5 {[%clk 0:01:18.1]} 21... Bxf5 {[%clk 0:02:27.3]} 22. gxf5 {[%clk 0:01:19]}
22... g6 {[%clk 0:02:20.9]} 23. Qd3 {[%clk 0:01:08.5]} 23... gxf5 {[%clk
0:02:16.7]} 24. Qxf5 {[%clk 0:01:06.9]} 24... Nf8 {[%clk 0:02:09.1]} 25. Qg5
{[%clk 0:00:57.7]} 25... Qe6 {[%clk 0:02:00.5]} 26. Kf1 {[%clk 0:00:32.2]} 26...
Rg6 {[%clk 0:01:56.2]} 27. Qf4 {[%clk 0:00:31.8]} 27... Rhg8 {[%clk 0:01:47.1]}
28. Bh1 {[%clk 0:00:19.1]} 28... Qh3+ {[%clk 0:01:40.9]} 29. Ke2 {[%clk
0:00:18.2]} 29... Ne6 {[%clk 0:01:32.1]} 30. Qe3 {[%clk 0:00:18.2]} 30... Rg4
{[%clk 0:01:30.2]} 31. Kd2 {[%clk 0:00:10.4]} 31... Ba5+ {[%clk 0:01:28.8]} 32.
Kc2 {[%clk 0:00:09.5]} 32... Bxe1 {[%clk 0:01:27.7]} 33. Rxe1 {[%clk 0:00:09.7]}
33... Re4 {[%clk 0:01:24.6]} 34. Qd3 {[%clk 0:00:08.5]} 34... Rxe1 {[%clk
0:01:20.4]} 35. Nxe1 {[%clk 0:00:08.5]} 35... Qxh1 {[%clk 0:01:20.1]} 0-1